bitfinex/quotes_ETHUSD_20250430
["timestamp","ask_amount","ask_price","bid_price","bid_amount"]
[1746016935553,1.2264989,1780.9,1780.5,13.57489484]
[1746016935754,1.2264989,1780.9,1780.5,6.97089964]
[1746016936258,1.2264989,1780.9,1780.4,6.97089964]
[1746016937060,1.2264989,1780.9,1780.3,6.182]
[1746016937448,1.2264989,1780.9,1780.4,6.97089964]
[1746016938397,1.2264989,1780.9,1780.5,0.55]
[1746016939790,1.2264989,1780.9,1780.7,6.97089964]
[1746016940026,1.2264989,1780.9,1780.8,0.55]
[1746016940154,1.2264989,1780.9,1780.7,6.97089964]
[1746016940650,1.2264989,1780.9,1780.4,6.97089964]
[1746016941609,1.2264989,1780.9,1780.7,6.97089964]
[1746016941766,1.2264989,1780.9,1780.8,0.60614766]
[1746016941967,1.2264989,1780.9,1780.8,7.4348]
[1746016942465,0.7992,1781.6,1780.8,10.85548367]
[1746016942671,0.7508,1781.9,1781.4,6.97089964]
[1746016943093,4.63716975,1782.1,1781.4,6.97089964]
[1746016943484,4.63716975,1782.1,1781.4,8.3488896]
[1746016944063,4.63716975,1782.1,1781.8,0.55]
[1746016944475,4.63716975,1782.1,1781.8,6.608]
[1746016944772,4.63716975,1782.1,1781.8,6.058]
[1746016945174,0.8265,1782.5,1781.8,6.058]
[1746016945570,4.63716975,1782.7,1782.4,4.37140445]
[1746016945782,4.63716975,1782.7,1782.1,4.37140445]
[1746016945984,4.63716975,1782.7,1782.4,4.37140445]
[1746016947501,4.63716975,1782.7,1782.4,6.95288164]
[1746016948006,4.63716975,1782.7,1782.1,6.95288164]
[1746016948184,4.63716975,1782.7,1782.2,6.057]
[1746016949473,4.63716975,1782.7,1781.9,0.775]
[1746016949474,0.826,1782.6,1781.9,0.775]
[1746016949675,0.826,1782.6,1781.8,31.54988164]
[1746016950766,0.826,1782.6,1782.1,6.95288164]
[1746016950961,6.816,1782.9,1782.1,6.95288164]
[1746016951804,0.7925,1782.7,1781.4,0.88507378]
[1746016952008,0.55,1782.8,1780.7,0.41451023]
[1746016952009,0.7925,1782.2,1780.7,0.41451023]
[1746016952209,3.0,1782.3,1780.5,7.72068164]
[1746016952210,0.7955,1781.9,1780.5,7.72068164]
[1746016952370,0.7955,1781.9,1780.5,8.4927498]
[1746016952709,0.7955,1781.7,1780.5,0.77206816]
[1746016952911,6.054,1781.6,1780.2,0.75]
[1746016953070,0.8237,1781.4,1780.2,0.75]
[1746016953266,0.29746254,1781.3,1780.2,0.75]
[1746016953478,0.29746254,1781.3,1780.2,7.70288164]
[1746016953908,0.8237,1781.4,1780.3,6.054]
[1746016954203,0.8237,1781.4,1780.4,0.6054]
[1746016954966,0.49647377,1781.3,1780.4,0.6054]
[1746016955767,0.8237,1781.4,1780.3,6.054]
[1746016956168,0.29820206,1781.3,1780.3,6.054]
[1746016956368,0.29820206,1781.3,1780.5,6.95288164]
[1746016956910,0.29820206,1781.3,1780.5,7.50288164]
[1746016957111,0.8237,1781.4,1780.5,7.50288164]
[1746016957308,0.8237,1781.4,1780.8,6.95288164]
[1746016958855,0.8237,1781.4,1780.5,1.05028816]
[1746016958992,0.8237,1781.4,1780.6,0.55]
[1746016959193,0.8237,1781.4,1780.6,6.95288164]
[1746016959396,0.49797987,1781.3,1780.6,6.95288164]
[1746016959834,0.8259,1781.2,1780.4,6.056]
[1746016960531,0.8259,1781.2,1780.6,6.95288164]
[1746016961517,0.8259,1781.2,1781.0,109.20586]
[1746016963433,0.8331,1781.5,1781.0,109.20586]
[1746016963944,0.29979071,1781.4,1781.0,109.20586]
[1746016964503,0.8331,1781.5,1781.0,109.20586]
[1746016964907,0.8331,1781.5,1781.2,6.95288164]
[1746016965330,0.8331,1781.5,1781.0,109.20586]
[1746016965543,0.8146,1782.0,1781.2,6.95288164]
[1746016965844,0.79963688,1781.9,1781.3,0.05613469]
[1746016966012,0.79963688,1781.9,1781.2,6.95288164]
[1746016966213,0.79963688,1781.9,1781.2,13.00888164]
[1746016966748,0.29986456,1781.8,1781.0,118.26186]
[1746016966901,0.79963688,1781.8,1781.0,118.26186]
[1746016967095,0.7994,1781.7,1781.0,109.20586]
[1746016967451,0.29986456,1781.6,1781.0,109.20586]
[1746016967739,0.29986456,1781.6,1781.0,114.7581767]
[1746016967895,0.29986456,1781.6,1781.2,6.95288164]
[1746016968295,0.7994,1781.7,1781.2,6.95288164]
[1746016969308,0.7559,1782.3,1781.5,6.95288164]
[1746016969534,9.2130654,1783.1,1783.0,83.2195]
[1746016969709,18.84774028,1783.1,1783.0,58.98305522]
[1746016969892,18.59785384,1783.1,1783.0,58.98305522]
[1746016970092,18.81052046,1783.1,1783.0,58.7724686]
[1746016970297,19.3107007,1783.1,1783.0,58.35128752]
[1746016970496,14.52213843,1783.1,1783.0,58.35128752]
[1746016970693,14.72213843,1783.1,1783.0,58.35128752]
[1746016971126,14.52213843,1783.1,1783.0,58.35128752]
[1746016971337,14.52213843,1783.1,1783.0,57.93011462]
[1746016971535,12.94376419,1783.1,1783.0,57.93011462]
[1746016971834,12.94376419,1783.1,1783.0,46.74907901]
[1746016972343,18.16068059,1783.1,1783.0,40.64907901]
[1746016972496,18.58055149,1783.1,1783.0,29.64970002]
[1746016972833,23.60815149,1783.1,1783.0,29.3337556]
[1746016973638,23.60815149,1783.1,1783.0,26.00190839]
[1746016974612,20.60815149,1783.1,1783.0,26.00190839]
[1746016974839,23.60815149,1783.1,1783.0,26.00190839]
[1746016975347,23.60815149,1783.1,1783.0,22.0617254]
[1746016976338,23.60815149,1783.1,1783.0,18.7317254]
[1746016976580,23.31713074,1783.1,1783.0,8.6017254]
[1746016976780,13.91363509,1783.1,1783.0,8.6017254]
[1746016976980,18.28953074,1783.1,1783.0,8.6017254]
[1746016977150,22.08608799,1783.1,1783.0,8.6017254]
[1746016977694,22.08608799,1783.1,1783.0,8.18046236]
[1746016977980,22.08608799,1783.1,1783.0,4.95647057]
[1746016978686,27.98908799,1783.1,1783.0,4.95647057]
[1746016979145,22.08608799,1783.1,1783.0,4.95647057]
[1746016979545,22.37890907,1783.1,1783.0,4.95647057]
[1746016980203,28.28190907,1783.1,1783.0,4.95647057]
[1746016980357,27.98908799,1783.1,1783.0,4.95647057]
[1746016980558,0.55,1782.2,1780.9,0.8091]
[1746016980885,3.0,1782.0,1780.9,0.8091]
[1746016981273,0.32911631,1781.9,1780.7,4.37589565]
[1746016981480,0.32911631,1781.9,1780.7,5.49869522]
[1746016981793,0.32911631,1781.9,1780.7,4.37589565]
[1746016982363,0.30011356,1781.8,1780.7,4.37589565]
[1746016982557,0.50018024,1781.7,1780.6,6.8521]
[1746016982762,3.0,1781.5,1780.6,6.091]
[1746016983023,3.0,1781.5,1780.4,4.37589565]
[1746016983176,3.0,1781.5,1780.7,4.37589565]
[1746016983506,0.8002938,1781.4,1780.7,4.37589565]
[1746016983874,0.8002938,1781.4,1780.4,4.37589565]
[1746016984344,0.8002938,1781.4,1780.3,0.7611]
[1746016984345,0.50018024,1781.3,1780.3,0.7611]
[1746016984506,0.50018024,1781.3,1780.1,5.13699565]
[1746016984507,0.30011356,1781.2,1780.1,5.13699565]
[1746016984706,6.092,1781.1,1780.1,6.25989522]
[1746016984908,6.092,1781.1,1780.1,5.13699565]
[1746016985135,3.0,1781.0,1779.9,6.092]
[1746016985345,3.30011356,1781.0,1779.9,6.092]
[1746016985643,3.32976551,1781.0,1779.8,0.7611]
[1746016986034,0.50018024,1780.9,1779.8,0.7611]
[1746016986215,0.8002938,1780.9,1779.8,0.7611]
[1746016986419,0.82994575,1780.9,1779.8,0.7611]
[1746016986723,0.50018024,1780.8,1779.8,0.7611]
[1746016986919,0.30011356,1780.7,1779.8,0.7611]
[1746016987130,6.093,1780.6,1779.8,0.7611]
[1746016987511,6.093,1780.6,1780.0,4.37589565]
[1746016987718,6.093,1780.6,1779.5,24.63]
[1746016987719,0.55,1780.4,1779.1,0.78299045]
[1746016987923,0.55,1780.4,1778.5,2.058]
[1746016987924,4.37589565,1779.8,1778.5,2.058]
[1746016988152,3.0,1779.6,1778.5,2.058]
[1746016988549,0.8002938,1779.5,1778.5,2.058]
[1746016988748,0.8002938,1779.5,1778.5,2.4638]
[1746016989465,1.29850189,1779.4,1778.6,4.37589565]
[1746016990024,0.30011356,1779.3,1778.5,2.4638]
[1746016990222,0.30011356,1779.3,1778.5,2.058]
[1746016990820,0.30011356,1779.2,1778.5,2.058]
[1746016991866,6.094,1779.6,1778.7,4.37589565]
[1746016992232,0.49549831,1779.5,1778.7,4.37589565]
[1746016992870,6.094,1779.6,1778.7,4.37589565]
[1746016993077,0.02997009,1779.8,1778.7,4.37589565]
[1746016993243,0.02997009,1779.8,1779.0,4.37589565]
[1746016993244,6.096,1779.8,1779.0,4.37589565]
[1746016993449,0.29702038,1779.7,1778.7,4.37589565]
[1746016993677,0.4946783,1779.6,1778.7,4.37589565]
[1746016993968,0.29702038,1779.5,1778.5,2.058]
[1746016994768,0.4946783,1779.4,1778.5,2.058]
[1746016994930,0.2452,1779.4,1778.5,6.83969565]
[1746016995130,0.2452,1779.4,1778.8,4.37589565]
[1746016995548,0.2452,1779.4,1778.5,6.83969565]
[1746016995747,0.2452,1779.4,1778.5,6.43389565]
[1746016996786,0.2452,1779.2,1778.5,1.2265]
[1746016996951,0.2452,1779.0,1778.5,1.2265]
[1746016997980,3.27387814,1779.0,1778.5,1.2265]
[1746016998478,0.2452,1778.9,1778.5,1.2265]
[1746017000865,6.092,1778.8,1778.5,1.2265]
[1746017001382,6.092,1778.8,1777.9,2.61501377]
[1746017001758,0.2452,1778.7,1777.9,2.61501377]
[1746017002155,0.2452,1778.7,1778.0,4.48833523]
[1746017002979,6.3372,1779.1,1778.3,4.37589565]
[1746017003409,0.29601887,1779.0,1778.3,4.37589565]
[1746017003574,0.29601887,1779.0,1778.0,5.19867013]
[1746017003779,0.29601887,1779.0,1778.0,4.48833523]
[1746017003780,0.2452,1779.0,1778.0,4.48833523]
[1746017004180,0.29600557,1778.9,1778.0,4.48833523]
[1746017004468,0.2452,1779.0,1778.0,4.48833523]
[1746017005379,0.29633607,1778.9,1778.3,4.37589565]
[1746017005595,0.2452,1779.0,1778.3,4.37589565]
[1746017005797,0.2452,1779.0,1778.4,0.00472666]
[1746017006316,0.2452,1779.0,1778.3,1.86789643]
[1746017006610,0.29660855,1778.9,1778.5,0.12551371]
[1746017007017,0.29660855,1778.9,1778.3,2.70689643]
[1746017007214,0.29660855,1778.9,1778.6,4.37589565]
[1746017007392,18.8032,1779.3,1778.6,4.37589565]
[1746017007592,0.2452,1779.3,1778.7,0.12163673]
[1746017007781,0.2452,1779.3,1778.6,4.37589565]
[1746017008097,0.2971463,1779.2,1778.7,0.12163673]
[1746017009025,0.79338825,1779.1,1778.7,0.12163673]
[1746017009211,1.28961313,1779.1,1778.7,0.12163673]
[1746017009387,1.28961313,1779.1,1778.8,0.00352843]
[1746017009591,0.49622488,1779.0,1778.8,0.00352843]
[1746017009789,0.74144195,1778.9,1778.8,0.00352843]
[1746017010220,1.23766683,1778.9,1778.8,0.00352843]
[1746017010423,1.23766683,1778.9,1778.3,4.37589565]
[1746017010727,1.28961313,1778.9,1778.3,5.42278522]
[1746017010888,0.49622488,1778.8,1778.6,4.37589565]
[1746017011092,0.49622488,1778.8,1778.3,4.37589565]
[1746017011426,0.2971463,1778.9,1778.3,4.37589565]
[1746017011920,0.79432776,1779.2,1778.3,4.37589565]
[1746017012322,0.49782467,1779.1,1778.3,4.37589565]
[1746017012524,0.2452,1779.0,1778.3,4.37589565]
[1746017012819,0.79432776,1778.9,1778.3,4.37589565]
[1746017013023,1.29215243,1778.9,1778.3,4.37589565]
[1746017013392,0.49782467,1778.8,1778.3,4.37589565]
[1746017013592,0.49782467,1778.8,1778.1,4.37589565]
[1746017013826,0.2452,1778.7,1778.1,4.37589565]
[1746017014057,0.74238146,1778.7,1777.9,2.61501377]
[1746017014334,0.79497097,1778.6,1777.9,2.61501377]
[1746017014826,0.49782467,1778.5,1777.9,2.61501377]
[1746017015010,0.49718146,1778.4,1777.9,2.61501377]
[1746017015218,0.79432776,1778.4,1778.1,4.37589565]
[1746017015419,0.49782467,1778.3,1778.1,5.25799565]
[1746017015618,0.49782467,1778.3,1778.1,11.40822738]
[1746017015824,0.49782467,1778.3,1778.1,11.35199565]
[1746017016037,0.2452,1779.4,1778.2,1.43102603]
[1746017016245,0.2452,1779.4,1778.8,4.37589565]
[1746017016799,0.30082103,1779.3,1778.8,4.37589565]
[1746017017004,0.30082103,1779.3,1779.1,4.37589565]
[1746017017854,0.30082103,1779.2,1778.7,0.852]
[1746017018035,0.54602103,1779.2,1778.8,4.37589565]
[1746017018237,0.54602103,1779.2,1778.6,6.094]
[1746017018435,0.30082103,1779.1,1778.5,4.37589565]
[1746017018913,0.30082103,1779.0,1778.5,4.37589565]
[1746017019621,0.2452,1778.9,1777.9,2.61501377]
[1746017019826,0.2452,1778.6,1777.9,2.61501377]
[1746017020162,0.2452,1778.4,1777.9,2.61501377]
[1746017020309,0.2452,1778.2,1777.9,2.61501377]
[1746017021150,0.30082103,1778.1,1777.9,2.61501377]
[1746017021335,0.2452,1778.0,1777.9,2.61501377]
[1746017021938,0.54602103,1778.0,1777.9,2.61501377]
[1746017023638,0.54602103,1778.0,1777.9,2.61911137]
[1746017023841,0.54602103,1778.0,1777.9,2.72021965]
[1746017024148,0.45664203,1778.0,1777.9,2.72021965]
[1746017027384,0.30082103,1778.0,1777.9,2.72021965]
[1746017027530,0.30082103,1778.0,1777.9,7.0961153]
[1746017027724,0.30082103,1778.0,1777.9,2.72021965]
[1746017028026,0.30082103,1778.0,1777.9,0.10592742]
[1746017028448,1.01007075,1778.0,1777.9,0.10592742]
[1746017029027,1.50954004,1778.0,1777.9,0.10592742]
[1746017029758,1.50954004,1778.0,1777.6,8.0922865]
[1746017029938,0.49964972,1777.9,1777.6,8.0922865]
[1746017030138,0.49946929,1777.8,1777.6,8.0922865]
[1746017030334,0.30082103,1777.7,1777.6,8.0922865]
[1746017030566,0.80028596,1777.7,1777.6,12.46818215]
[1746017031130,0.49946929,1777.8,1777.6,12.46818215]
[1746017031448,6.3046,1778.4,1777.7,0.8775]
[1746017031962,0.2096,1778.4,1777.6,9.95460988]
[1746017032669,0.49959775,1778.3,1777.6,9.95460988]
[1746017033661,0.49959775,1778.2,1777.6,9.95460988]
[1746017033980,0.49959775,1778.2,1777.9,4.37589565]
[1746017034533,0.2096,1778.7,1777.9,4.37589565]
[1746017034534,0.49959775,1778.6,1777.9,4.37589565]
[1746017035156,0.2096,1778.5,1777.6,9.95460988]
[1746017035556,0.49959775,1778.4,1777.6,9.95460988]
[1746017036768,0.49959775,1778.3,1777.6,9.95460988]
[1746017037570,0.49959775,1778.4,1777.6,9.95460988]
[1746017037774,0.49959775,1778.4,1777.9,4.37589565]
[1746017037972,0.2096,1778.3,1777.6,5.57871423]
[1746017038654,0.49959775,1778.2,1777.6,5.57871423]
[1746017038859,0.49959775,1778.2,1777.8,4.37589565]
[1746017039054,0.49959775,1778.2,1777.8,5.23549565]
[1746017040601,0.49959775,1778.2,1777.8,4.37589565]
[1746017042098,4.68603522,1779.0,1778.1,4.37589565]
[1746017042300,4.68603522,1779.0,1778.7,4.37589565]
[1746017042797,4.68603522,1779.0,1778.8,0.8619]
[1746017046097,2.87475781,1779.4,1778.9,6.034]
[1746017046297,2.87475781,1779.4,1779.0,4.37589565]
[1746017046484,2.87475781,1779.4,1778.9,6.034]
[1746017046485,2.87475781,1779.4,1779.3,4.37589565]
[1746017046876,2.87475781,1779.4,1779.0,4.37589565]
[1746017047797,2.87475781,1779.4,1779.3,4.37589565]
[1746017048006,2.87475781,1779.4,1779.1,4.37589565]
[1746017048716,2.87475781,1779.4,1779.2,0.844]
[1746017048872,2.87475781,1779.4,1779.2,1.36598957]
[1746017049209,2.87475781,1779.4,1779.3,6.032]
[1746017049380,4.68603522,1779.9,1779.3,6.032]
[1746017049583,0.29936362,1779.8,1779.4,4.37589565]
[1746017050087,0.2096,1779.7,1779.1,4.37589565]
[1746017050288,0.70861959,1779.7,1779.1,4.37589565]
[1746017050606,0.49901959,1779.7,1779.4,4.37589565]
[1746017050808,0.2096,1779.9,1779.4,4.37589565]
[1746017051015,0.49870056,1779.8,1779.4,4.37589565]
[1746017051389,0.2096,1779.9,1779.4,4.37589565]
[1746017052484,1.10129927,1780.0,1779.7,4.37589565]
[1746017053184,1.10129927,1780.0,1779.2,0.9266]
[1746017053385,1.10129927,1780.0,1779.4,4.37589565]
[1746017053592,0.49774307,1779.9,1779.7,4.37589565]
[1746017054090,1.10129927,1780.0,1779.7,4.37589565]
[1746017054988,1.10129927,1780.0,1779.8,0.8549]
[1746017055193,1.10129927,1780.0,1779.7,2.71989688]
[1746017055375,1.10129927,1780.0,1779.9,4.37589565]
[1746017056309,1.10129927,1780.0,1779.2,0.48680041]
[1746017056513,1.10129927,1780.0,1779.8,4.37589565]
[1746017060225,1.10129927,1780.0,1779.8,4.90046521]
[1746017060815,1.10129927,1780.0,1779.8,4.37589565]
[1746017062277,1.10129927,1780.0,1779.9,0.9376]
[1746017062878,0.8948,1780.8,1779.9,3.9376]
[1746017063078,0.49757422,1780.7,1780.5,4.37589565]
[1746017063706,0.9265,1781.4,1780.5,10.38089565]
[1746017063913,0.49778913,1781.3,1780.9,4.37589565]
[1746017064442,0.49752407,1781.2,1780.9,4.37589565]
[1746017064617,0.49778913,1781.3,1780.9,4.37589565]
[1746017065386,0.9265,1781.4,1780.9,4.37589565]
[1746017065722,0.4978433,1781.3,1780.9,4.37589565]
[1746017066197,6.005,1781.6,1780.9,4.37589565]
[1746017066513,0.79601608,1781.5,1780.9,4.37589565]
[1746017066716,1.29388713,1781.5,1780.9,4.37589565]
[1746017067104,0.49787105,1781.4,1780.9,4.37589565]
[1746017067509,0.49752559,1781.5,1780.9,4.37589565]
[1746017067510,6.005,1781.6,1780.9,4.37589565]
[1746017067929,0.49822052,1781.5,1780.9,4.37589565]
[1746017068110,0.2989341,1781.4,1780.9,4.37589565]
[1746017068691,1.40402052,1781.3,1780.5,0.8643]
[1746017068890,0.2989341,1781.2,1780.8,4.37589565]
[1746017069131,0.49822052,1781.1,1780.8,4.37589565]
[1746017069625,0.2989341,1781.0,1780.5,5.24019565]
[1746017070110,0.49822052,1780.9,1780.5,5.24019565]
[1746017070850,0.49822052,1781.2,1780.5,5.24019565]
[1746017071154,0.49950178,1781.1,1780.5,5.24019565]
[1746017071511,0.49950178,1781.1,1780.8,4.37589565]
[1746017071705,0.49822052,1781.0,1780.8,4.37589565]
[1746017071936,0.49822052,1781.0,1780.5,5.24019565]
[1746017072109,0.29969997,1780.9,1780.5,5.24019565]
[1746017072721,0.49822052,1780.8,1780.5,5.24019565]
[1746017073673,0.49822052,1781.2,1780.5,5.24019565]
[1746017074005,0.79796921,1781.1,1780.5,5.24019565]
[1746017074427,0.49822052,1781.0,1780.5,5.24019565]
[1746017074626,0.49822052,1781.0,1780.8,4.37589565]
[1746017075538,0.49822052,1781.2,1780.8,4.37589565]
[1746017076154,0.49991299,1781.1,1780.8,4.37589565]
[1746017076461,0.49822052,1781.0,1780.8,4.37589565]
[1746017077528,0.49822052,1781.2,1780.8,4.49730089]
[1746017078154,0.79817715,1781.1,1780.8,4.49730089]
[1746017078668,0.79817715,1781.1,1781.0,4.49730089]
[1746017079127,1.29848674,1781.1,1781.0,4.49730089]
[1746017080463,1.29848674,1781.1,1781.0,1.98835743]
[1746017081370,2.18638674,1781.1,1780.3,0.41560874]
[1746017081539,0.49822052,1781.0,1780.3,4.49730089]
[1746017081979,0.79817715,1780.9,1780.3,4.49730089]
[1746017082183,1.29848674,1780.9,1780.7,4.49730089]
[1746017082380,0.49822052,1780.8,1780.7,4.49730089]
[1746017082866,0.8836,1780.7,1779.8,4.49730089]
[1746017083070,0.50030959,1780.6,1780.2,4.49730089]
[1746017083605,0.49822052,1780.5,1780.2,4.49730089]
[1746017083782,0.49822052,1780.5,1780.4,4.49730089]
[1746017083981,0.79817715,1780.5,1780.4,4.49730089]
[1746017084512,0.49822052,1780.5,1780.4,4.49730089]
[1746017084914,0.49822052,1780.9,1780.4,4.49730089]
[1746017085135,0.49822052,1780.8,1780.6,4.49730089]
[1746017085590,0.49822052,1780.7,1780.4,4.49730089]
[1746017085789,0.7992134,1780.7,1780.4,4.49730089]
[1746017086018,0.50170019,1780.6,1780.4,4.49730089]
[1746017086386,0.49822052,1780.5,1780.4,4.49730089]
[1746017086781,0.7992134,1780.5,1780.4,4.49730089]
[1746017087081,1.30091359,1780.5,1780.4,4.49730089]
[1746017088710,1.30091359,1780.5,1780.4,4.55346374]
[1746017088914,0.957,1780.3,1778.9,1.79956635]
[1746017089224,0.9612,1779.7,1778.9,1.79956635]
[1746017089435,0.9612,1779.5,1778.6,4.49730089]
[1746017089597,0.9612,1779.5,1779.2,4.49730089]
[1746017089800,0.30099288,1779.4,1779.2,4.49730089]
[1746017090111,0.30099288,1779.4,1778.9,0.9564]
[1746017090112,0.49822052,1779.3,1778.9,0.9564]
[1746017090298,0.99992071,1779.3,1779.1,4.49730089]
[1746017090498,0.49822052,1779.2,1779.1,4.49730089]
[1746017090703,0.7992134,1779.2,1779.1,4.49730089]
[1746017091734,1.30091359,1779.2,1778.9,4.38912735]
[1746017092042,0.99992071,1779.2,1778.9,4.38912735]
[1746017092538,0.49822052,1779.1,1778.9,4.38912735]
[1746017093749,0.49822052,1779.4,1778.9,4.38912735]
[1746017094306,0.49867665,1779.3,1778.9,4.38912735]
[1746017094903,0.49822052,1779.2,1778.9,4.38912735]
[1746017096319,6.212,1779.8,1778.9,4.38912735]
[1746017096320,0.9169,1779.6,1778.9,4.38912735]
[1746017096556,0.9169,1779.6,1779.2,4.38912735]
[1746017096871,0.79695023,1779.5,1779.2,4.38912735]
[1746017097366,0.49822052,1779.4,1779.2,4.38912735]
[1746017098026,6.212,1779.8,1779.2,4.38912735]
[1746017098427,0.49809992,1779.7,1779.2,4.38912735]
[1746017099160,0.49809871,1779.6,1779.2,4.38912735]
[1746017099364,0.49809992,1779.5,1779.2,4.38912735]
[1746017099727,0.49809871,1779.4,1779.2,4.38912735]
[1746017100465,0.49809992,1779.5,1779.2,5.27892735]
[1746017100665,6.212,1779.8,1779.2,5.27892735]
[1746017100977,0.49800655,1779.7,1779.2,4.38912735]
[1746017101564,0.49800655,1779.6,1779.2,4.38912735]
[1746017101980,0.49800655,1779.5,1779.2,4.38912735]
[1746017102268,6.212,1779.8,1778.6,4.38912735]
[1746017102269,1.38080655,1779.4,1778.6,4.38912735]
[1746017102437,6.212,1779.3,1778.6,4.38912735]
[1746017102637,0.29856357,1779.2,1778.6,4.38912735]
[1746017102868,0.99560991,1779.1,1778.6,4.38912735]
[1746017103251,0.49800655,1779.0,1778.6,4.38912735]
[1746017103456,0.49800655,1779.0,1778.3,4.38912735]
[1746017103457,0.9532,1778.9,1778.3,4.38912735]
[1746017103639,6.213,1778.8,1778.3,4.38912735]
[1746017103840,6.71100655,1778.8,1778.3,4.38912735]
[1746017104063,0.9551,1778.6,1778.0,4.38912735]
[1746017104248,0.9551,1778.6,1777.7,4.38912735]
[1746017104552,0.9551,1778.4,1777.7,4.38912735]
[1746017104756,0.9551,1778.2,1777.6,5.57871423]
[1746017104965,0.49800655,1778.1,1777.6,5.57871423]
[1746017105480,0.9553,1778.0,1777.6,5.57871423]
[1746017105675,1.45330655,1778.0,1777.6,5.57871423]
[1746017105976,0.99560991,1777.9,1777.6,5.57871423]
[1746017106341,6.214,1777.8,1777.6,5.57871423]
[1746017106545,0.49800655,1777.7,1777.6,5.57871423]
[1746017107288,6.214,1777.8,1777.6,5.57871423]
[1746017107574,0.9553,1778.0,1777.7,4.38912735]
[1746017107776,6.214,1778.2,1777.7,4.38912735]
[1746017108090,0.49523329,1778.1,1777.7,4.38912735]
[1746017108279,0.9524,1778.0,1777.6,5.57871423]
[1746017108952,0.49523329,1777.9,1777.6,5.57871423]
[1746017110213,0.49523329,1777.9,1777.4,6.79774405]
[1746017110214,0.1978,1777.7,1777.4,2.4086167]
[1746017110355,0.49523329,1777.9,1777.4,2.4086167]
[1746017110356,25.335,1777.6,1777.4,2.2108167]
[1746017110549,3.0,1777.5,1777.4,2.2108167]
[1746017110752,3.0,1777.5,1776.2,0.005]
[1746017110753,0.75,1777.2,1776.2,0.005]
[1746017111056,3.55,1777.0,1776.2,0.005]
[1746017111502,3.55,1776.8,1776.0,1.0]
[1746017111787,3.75,1775.8,1775.4,2.71969697]
[1746017112006,4.38912735,1775.9,1775.4,2.71969697]
[1746017112007,3.55,1775.6,1775.4,2.71969697]
[1746017112504,6.218,1775.6,1775.4,2.71969697]
[1746017112705,0.2915048,1776.4,1775.4,7.10882432]
[1746017112907,0.55,1776.3,1775.4,7.10882432]
[1746017113110,0.55,1776.3,1775.4,2.71969697]
[1746017113473,0.55,1776.1,1775.4,2.71969697]
[1746017113674,3.55,1776.1,1775.4,2.71969697]
[1746017113905,3.55,1775.9,1775.4,2.71969697]
[1746017114081,6.218,1776.0,1775.4,2.71969697]
[1746017114301,0.55,1775.8,1775.4,2.71969697]
[1746017114824,0.55,1775.6,1775.4,2.71969697]
[1746017114987,9.74003329,1775.5,1775.4,2.71969697]
[1746017115184,10.29003329,1775.5,1775.4,2.71969697]
[1746017115396,6.74003329,1775.5,1775.4,2.71969697]
[1746017115711,0.49523329,1775.5,1775.4,2.71969697]
[1746017116007,0.49290052,1775.7,1775.4,2.71969697]
[1746017116008,0.0238,1775.6,1775.4,2.71969697]
[1746017116207,6.2448,1775.9,1775.4,2.84227385]
[1746017116421,0.49021621,1775.8,1775.4,2.84227385]
[1746017116582,0.49021621,1775.8,1775.4,7.2314012]
[1746017116785,6.2448,1776.3,1775.4,7.2314012]
[1746017116988,9.81664987,1776.3,1775.4,7.2314012]
[1746017117320,0.49055722,1776.2,1775.4,2.54225553]
[1746017117522,0.49055722,1776.2,1775.5,0.13023656]
[1746017117680,0.5738,1776.1,1775.5,0.13023656]
[1746017117881,0.98041909,1776.0,1774.8,15.48898961]
[1746017118220,0.98041909,1776.0,1775.1,4.38912735]
[1746017118377,0.49055722,1775.9,1775.2,1.04717857]
[1746017118729,0.49055722,1775.9,1775.2,7.27017857]
[1746017118883,0.48986187,1776.0,1775.2,7.27017857]
[1746017118884,0.48986187,1776.0,1775.3,0.00247156]
[1746017119083,0.0238,1776.1,1775.3,0.00247156]
[1746017119286,0.48927855,1776.0,1775.2,1.04717857]
[1746017120041,0.48927855,1776.0,1775.4,4.38912735]
[1746017120245,0.0238,1776.5,1775.7,4.38912735]
[1746017120538,0.48913258,1776.4,1775.8,0.9698]
[1746017120740,0.48913258,1776.4,1776.3,4.38912735]
[1746017120943,0.48913258,1776.4,1776.0,4.38912735]
[1746017121124,3.0238,1777.0,1776.3,0.00331893]
[1746017121440,3.0238,1777.0,1776.4,0.12952061]
[1746017121602,0.0238,1776.8,1776.4,0.12952061]
[1746017121814,6.224,1776.7,1775.6,4.38912735]
[1746017122129,3.55,1776.6,1776.5,0.12632844]
[1746017122326,0.0238,1776.5,1775.5,5.29372735]
[1746017122527,0.0238,1776.5,1775.5,5.82310009]
[1746017122702,0.48915781,1776.4,1775.8,4.38912735]
[1746017123161,0.48915781,1776.4,1775.6,6.34030766]
[1746017123439,6.284,1776.7,1776.0,4.38912735]
[1746017123601,6.284,1776.7,1776.1,0.11134036]
[1746017123800,0.48937361,1776.6,1776.2,0.00338232]
[1746017124029,1.03937361,1776.6,1776.2,0.00338232]
[1746017124226,0.48937361,1776.6,1776.2,0.00338232]
[1746017124639,0.48937361,1776.5,1776.2,0.00338232]
[1746017124942,0.48937361,1776.6,1776.3,0.11017905]
[1746017125142,0.55,1776.5,1776.3,0.11017905]
[1746017125346,0.0238,1776.4,1775.6,4.38912735]
[1746017125638,0.0238,1776.1,1774.9,0.946]
[1746017125845,0.5738,1775.8,1774.8,15.48898961]
[1746017126156,0.5738,1775.8,1774.8,11.09986226]
[1746017126349,0.55,1775.7,1774.8,11.09986226]
[1746017126656,0.5738,1775.6,1774.8,11.09986226]
[1746017126862,0.48937361,1775.5,1774.8,11.09986226]
[1746017127381,0.48937361,1775.5,1775.0,4.38912735]
[1746017128082,0.48937361,1775.5,1775.3,4.38912735]
[1746017128379,0.0238,1776.2,1775.3,5.31392735]
[1746017128702,18.595,1776.3,1774.8,20.38486226]
[1746017128703,0.0238,1776.0,1774.8,15.48898961]
[1746017128843,1.04114234,1775.9,1774.8,11.09986226]
[1746017129046,0.0238,1775.6,1774.8,11.09986226]
[1746017129273,0.0238,1775.3,1774.8,11.09986226]
[1746017129482,0.55,1775.1,1774.8,11.09986226]
[1746017129648,6.77714234,1775.2,1774.8,11.09986226]
[1746017129846,0.49137923,1775.1,1774.8,11.09986226]
[1746017130047,0.98280543,1775.1,1774.8,11.09986226]
[1746017130448,0.5152262,1775.0,1774.8,11.09986226]
[1746017130668,0.0238,1774.8,1773.5,2.0]
[1746017130889,0.0238,1774.6,1773.5,2.0]
[1746017131046,0.5738,1774.6,1773.7,4.38912735]